[Event "Anderssen Festival 2019"]
[Site "Wroclaw"]
[Date "2019.08.10"]
[Round "8.3"]
[White "Butkiewicz, Lukasz"]
[Black "Lalic, Bogdan"]
[Result "1/2-1/2"]
[ECO "A45"]
[WhiteElo "2425"]
[BlackElo "2411"]
[Annotator "NA"]
[PlyCount "30"]
[EventDate "2019.08.05"]
[EventType "swiss"]
[EventCountry "POL"]
[SourceTitle "playchess.com"]
[Source "ChessBase"]
[SourceQuality "1"]
[TimeControl "40/5400+30:900+30"]

1. d4 {[%emt 0:00:00]} Nf6 {[%emt 0:04:37]} 2. Bg5 {[%emt 0:00:00]} Ne4 {[%emt 0:00:28]} 3. h4 {[%emt 0:00:38]} c5 {[%emt 0:01:13]} 4. d5 {[%emt 0:01:08]} Nxg5 {[%emt 0:00:55]} 5. hxg5 {[%emt 0:00:19]} g6 {[%emt 0:00:05]} 6. Nd2 {[%emt 0:14:33]} Bg7 {[%emt 0:00:23]} 7. c3 {[%emt 0:00:13]} d6 {[%emt 0:00:08]} 8. e4 {[%emt 0:01:21]} Nd7 {[%emt 0:00:51]} 9. Ngf3 {[%emt 0:01:22]} h6 {[%emt 0:01:58]} 10. Bd3 {[%emt 0:03:39]} Rb8 {[%emt 0:00:35]} 11. Qe2 {[%emt 0:01:25]} Kf8 {[%emt 0:00:30]} 12. a4 {[%emt 0:02:37]} a6 {[%emt 0:02:16]} 13. a5 {[%emt 0:01:42]} hxg5 {[%emt 0:00:07]} 14. Rxh8+ {[%emt 0:00:18]} Bxh8 {[%emt 0:00:08]} 15. Nxg5 {[%emt 0:01:40]} Ne5 {[%emt 0:00:06]} 1/2-1/2

[Event "Anderssen Festival 2019"]
[Site "Wroclaw"]
[Date "2019.08.10"]
[Round "8.5"]
[White "Dubinski, Mateusz"]
[Black "Piotrowski, Przemyslaw"]
[Result "1-0"]
[ECO "A41"]
[WhiteElo "2306"]
[BlackElo "2273"]
[Annotator "NA"]
[PlyCount "91"]
[EventDate "2019.08.05"]
[EventType "swiss"]
[EventCountry "POL"]
[SourceTitle "playchess.com"]
[Source "ChessBase"]
[SourceQuality "1"]
[TimeControl "40/5400+30:900+30"]

1. d4 {[%emt 0:00:00]} d6 {[%emt 0:01:21]} 2. Nf3 {[%emt 0:01:19]} Nf6 {[%emt 0:00:37]} 3. g3 {[%emt 0:01:10]} Nbd7 {[%emt 0:00:41]} 4. Bg2 {[%emt 0:00:08]} e5 {[%emt 0:00:12]} 5. O-O {[%emt 0:00:50]} g6 {[%emt 0:00:04]} 6. c4 {[%emt 0:01:06]} Bg7 {[%emt 0:00:06]} 7. Nc3 {[%emt 0:00:08]} O-O {[%emt 0:00:30]} 8. h3 {[%emt 0:00:15]} c6 {[%emt 0:00:19]} 9. Be3 {[%emt 0:04:16]} Re8 {[%emt 0:01:47]} 10. dxe5 {[%emt 0:09:55]} Nxe5 {[%emt 0:06:05]} 11. Nxe5 {[%emt 0:04:16]} dxe5 {[%emt 0:00:05]} 12. Qxd8 {[%emt 0:05:30]} Rxd8 {[%emt 0:00:06]} 13. Rad1 {[%emt 0:00:23]} Rxd1 {[%emt 0:04:50]} 14. Rxd1 {[%emt 0:00:42]} Be6 {[%emt 0:00:08]} 15. b3 {[%emt 0:00:13]} h6 {[%emt 0:00:32]} 16. g4 {[%emt 0:00:49]} Bf8 {[%emt 0:06:34]} 17. c5 {[%emt 0:09:15]} Kg7 {[%emt 0:10:04]} 18. b4 {[%emt 0:08:52]} Nd7 {[%emt 0:08:49]} 19. Ne4 {[%emt 0:17:20]} a5 {[%emt 0:06:19]} 20. a3 {[%emt 0:06:31]} axb4 {[%emt 0:00:06]} 21. axb4 {[%emt 0:00:01]} Ra2 {[%emt 0:06:48]} 22. g5 {[%emt 0:04:54]} h5 {[%emt 0:02:09]} 23. Nd6 {[%emt 0:08:10]} Bxd6 {[%emt 0:01:14]} 24. Rxd6 {[%emt 0:00:06]} Rb2 {[%emt 0:04:16]} 25. Bd2 {[%emt 0:00:07]} Kf8 {[%emt 0:00:25]} 26. Bc3 {[%emt 0:04:09]} Rc2 {[%emt 0:05:16]} 27. Rd3 {[%emt 0:01:58]} Rxe2 {[%emt 0:01:20]} 28. b5 {[%emt 0:02:52]} Nxc5 {[%emt 0:02:50]} 29. Bb4 {[%emt 0:06:08]} Rc2 {[%emt 0:00:05]} 30. bxc6 {[%emt 0:00:49]} bxc6 {[%emt 0:00:01]} 31. Rd6 {[%emt 0:01:56]} Rc4 {[%emt 0:07:43]} 32. Ba3 {[%emt 0:00:09]} Kg7 {[%emt 0:02:02]} 33. Bb2 {[%emt 0:00:46]} f6 {[%emt 0:00:29]} 34. Rxc6 {[%emt 0:00:34]} fxg5 {[%emt 0:01:41]} 35. Ba3 {[%emt 0:00:37]} Bxh3 {[%emt 0:10:00]} 36. Bxh3 {[%emt 0:00:56]} Rc3 {[%emt 0:00:01]} 37. Bb2 {[%emt 0:00:45]} Rxh3 {[%emt 0:00:04]} 38. Bxe5+ {[%emt 0:00:03]} Kh6 {[%emt 0:00:06]} 39. Rxc5 {[%emt 0:00:44]} Rf3 {[%emt 0:00:01]} 40. Rc7 {[%emt 0:00:00]} g4 {[%emt 0:00:00]} 41. Bd4 {[%emt 0:04:04]} Kg5 {[%emt 0:02:21]} 42. Rc5+ {[%emt 0:03:00]} Rf5 {[%emt 0:01:09]} 43. Be3+ {[%emt 0:02:36]} Kh4 {[%emt 0:01:23]} 44. Rc6 {[%emt 0:05:19]} g3 {[%emt 0:01:16]} 45. Kg2 {[%emt 0:00:58]} Re5 {[%emt 0:02:50]} 46. Rc4+ {[%emt 0:00:15]} 1-0

[Event "Anderssen Festival 2019"]
[Site "Wroclaw"]
[Date "2019.08.10"]
[Round "8.6"]
[White "Nguyen, Alex Dac-Vuong"]
[Black "Krawiecki, Stanislaw"]
[Result "1-0"]
[ECO "B03"]
[WhiteElo "2267"]
[BlackElo "1923"]
[Annotator "NA"]
[PlyCount "143"]
[EventDate "2019.08.05"]
[EventType "swiss"]
[EventCountry "POL"]
[SourceTitle "playchess.com"]
[Source "ChessBase"]
[SourceQuality "1"]
[TimeControl "40/5400+30:900+30"]

1. e4 Nf6 2. e5 Nd5 3. d4 d6 4. c4 Nb6 5. exd6 cxd6 6. d5 N8d7 7. Nc3 g6 8. Be3 Bg7 9. Rc1 a5 10. Nf3 O-O 11. Be2 Nc5 12. b3 Bg4 13. O-O Nbd7 14. Nd4 Bxe2 15. Qxe2 f5 16. f3 Ne5 17. Rcd1 Qc8 18. Bf2 a4 19. f4 Ng4 20. b4 Nxf2 21. Rxf2 Nd7 22. Ncb5 Bxd4 23. Rxd4 Rf7 24. Rf3 Nf6 25. Nc3 Qd7 26. Re3 Rc8 27. a3 Kg7 28. Qd1 Ra8 29. Re6 Kg8 30. Qe2 Rc8 31. g3 Kg7 32. h3 h5 33. Kh2 Kg8 34. Re3 Kg7 35. Qd1 Ra8 36. Kg2 Kg8 37. Re6 Kg7 38. Re3 Kg8 39. Kh2 Kg7 40. c5 Rff8 41. Qe2 Rfe8 42. Qc4 Rec8 43. Rd2 dxc5 44. Rde2 Ng8 45. bxc5 Ra5 46. d6 exd6 47. Qd4+ Kf8 48. cxd6 Ra6 49. Re7 Nxe7 50. Qf6+ Kg8 51. Rxe7 Qxe7 52. Qxe7 Rxd6 53. Qxd6 Rxc3 54. Qe6+ Kh7 55. Qf7+ Kh6 56. Qg8 Rc2+ 57. Kg1 Rc7 58. Qf8+ Kh7 59. Qb4 Kg7 60. Qxa4 Rf7 61. Qd4+ Kh7 62. Qd6 Kg7 63. Kf2 Kh7 64. Kf3 Kg7 65. a4 Kh7 66. a5 Kg7 67. Ke3 Kh7 68. Kd4 Kg7 69. Kc5 Kh7 70. Kb6 Kg7 71. Qe6 Kg8 72. h4 1-0

[Event "Anderssen Festival 2019"]
[Site "Wroclaw"]
[Date "2019.08.10"]
[Round "8.8"]
[White "Lugovskoy, Maxim"]
[Black "Chernyshov, Konstantin"]
[Result "1-0"]
[ECO "C10"]
[WhiteElo "2425"]
[BlackElo "2446"]
[Annotator "NA"]
[PlyCount "113"]
[EventDate "2019.08.05"]
[EventType "swiss"]
[EventCountry "POL"]
[SourceTitle "playchess.com"]
[Source "ChessBase"]
[SourceQuality "1"]
[TimeControl "40/5400+30:900+30"]

1. d4 e6 2. e4 d5 3. Nd2 dxe4 4. Nxe4 Nd7 5. g3 Ngf6 6. Nxf6+ Nxf6 7. Bg2 e5 8. Qe2 Qxd4 9. Nf3 Qe4 10. Qxe4 Nxe4 11. Nxe5 Nd6 12. O-O Be7 13. Re1 Be6 14. c4 O-O-O 15. Nxf7 Nxf7 16. Rxe6 Rd1+ 17. Bf1 Bf6 18. Kg2 Ne5 19. f4 Nd3 20. Bxd3 Rxd3 21. Re1 Kd7 22. f5 Rb8 23. a4 Re8 24. Rxe8 Kxe8 25. Bf4 Rb3 26. Re1+ Kd7 27. g4 Rxb2+ 28. Kf3 h6 29. Re6 Rb3+ 30. Ke4 Rc3 31. Bxh6 Rxc4+ 32. Kf3 Rxa4 33. Bc1 Rc4 34. Bd2 Rc2 35. Re2 b5 36. g5 Ba1 37. h4 Rc5 38. f6 Bxf6 39. gxf6 Rf5+ 40. Kg4 Rxf6 41. Bb4 Rc6 42. Kg5 Rc4 43. Bf8 g6 44. Be7 b4 45. Kxg6 b3 46. Bf6 a5 47. h5 Rg4+ 48. Kf7 Rg1 49. Rh2 a4 50. h6 a3 51. h7 b2 52. h8=Q b1=Q 53. Qe8+ Kd6 54. Qe6+ Kc5 55. Rh5+ Kb4 56. Be7+ Kc3 57. Qe3+ 1-0

[Event "Anderssen Festival 2019"]
[Site "Wroclaw"]
[Date "2019.08.10"]
[Round "8.9"]
[White "Kowalczuk, Mikolaj"]
[Black "Snihur, Piotr"]
[Result "1/2-1/2"]
[ECO "A52"]
[WhiteElo "1942"]
[BlackElo "2256"]
[Annotator "NA"]
[PlyCount "42"]
[EventDate "2019.08.05"]
[EventType "swiss"]
[EventCountry "POL"]
[SourceTitle "playchess.com"]
[Source "ChessBase"]
[SourceQuality "1"]
[TimeControl "40/5400+30:900+30"]

1. d4 Nf6 2. c4 e5 3. dxe5 Ng4 4. Bf4 Nc6 5. Nf3 Bb4+ 6. Nbd2 Qe7 7. a3 Bxd2+ 8. Qxd2 Ngxe5 9. Nxe5 Nxe5 10. e3 d6 11. Be2 O-O 12. O-O b6 13. b4 Bb7 14. Qc3 c5 15. bxc5 bxc5 16. Rfd1 Rad8 17. Rab1 Bc6 18. Rb2 Ng6 19. Bg3 f5 20. Bf1 Rf6 21. Qa5 Re6 1/2-1/2

[Event "Anderssen Festival 2019"]
[Site "Wroclaw"]
[Date "2019.08.10"]
[Round "8.10"]
[White "Mitchell, Martin"]
[Black "Socha, Kamil"]
[Result "1-0"]
[ECO "E46"]
[WhiteElo "2218"]
[BlackElo "1741"]
[Annotator "NA"]
[PlyCount "167"]
[EventDate "2019.08.05"]
[EventType "swiss"]
[EventCountry "POL"]
[SourceTitle "playchess.com"]
[Source "ChessBase"]
[SourceQuality "1"]
[TimeControl "40/5400+30:900+30"]

1. d4 Nf6 2. c4 e6 3. Nc3 Bb4 4. e3 O-O 5. Nge2 d5 6. a3 Be7 7. cxd5 exd5 8. Nf4 c6 9. Bd3 Re8 10. O-O Nbd7 11. b4 b5 12. e4 dxe4 13. Nxe4 a5 14. bxa5 Rxa5 15. Qb3 Qc7 16. Ng5 Rf8 17. Nfe6 fxe6 18. Qxe6+ Kh8 19. Qxe7 Re8 20. Qd6 Qxd6 21. Nf7+ Kg8 22. Nxd6 Rd8 23. Bf5 Nb6 24. Nxc8 Nxc8 25. Be6+ Kf8 26. Bd2 Ra7 27. Bb4+ Ne7 28. Rac1 Nfd5 29. Bc5 Rb7 30. g3 g6 31. Rfe1 Kg7 32. f4 Ra8 33. Bg4 Ra4 34. Bd1 Ra8 35. Re6 Kf7 36. Rd6 b4 37. axb4 Nxb4 38. Rb1 Rab8 39. Bb3+ Nbd5 40. Bxd5+ cxd5 41. Rxb7 Rxb7 42. g4 Rc7 43. Rd8 h6 44. Kf2 Ng8 45. h3 Nf6 46. Kf3 Nd7 47. Bd6 Rc3+ 48. Kg2 Nf6 49. Rf8+ Kg7 50. Ra8 Rc2+ 51. Kf3 Rc3+ 52. Ke2 Ne4 53. Be5+ Kf7 54. Ra7+ Ke6 55. Rg7 Rxh3 56. Rxg6+ Kf7 57. Rg7+ Ke8 58. f5 Ng5 59. Bf4 Nf7 60. Rg6 Ke7 61. Be5 Rb3 62. Re6+ Kd7 63. Bf4 Rh3 64. Kf2 Rh4 65. Kg3 Rh1 66. Ra6 Rg1+ 67. Kh3 Rf1 68. Ra7+ Ke8 69. Be5 Re1 70. Bf6 Ng5+ 71. Bxg5 hxg5 72. Rg7 Re3+ 73. Kg2 Re4 74. Rxg5 Rxd4 75. Kf3 Rd1 76. Rg6 Kf7 77. Rd6 Ke7 78. Re6+ Kf7 79. g5 Rf1+ 80. Kg4 Rg1+ 81. Kf4 d4 82. g6+ Kg7 83. Re7+ Kh6 84. Rh7# 1-0

[Event "Anderssen Festival 2019"]
[Site "Wroclaw"]
[Date "2019.08.10"]
[Round "8.11"]
[White "Smal, Tobiasz"]
[Black "Rog, Mateusz"]
[Result "1-0"]
[ECO "E85"]
[WhiteElo "2027"]
[BlackElo "1473"]
[Annotator "NA"]
[PlyCount "71"]
[EventDate "2019.08.05"]
[EventType "swiss"]
[EventCountry "POL"]
[SourceTitle "playchess.com"]
[Source "ChessBase"]
[SourceQuality "1"]
[TimeControl "40/5400+30:900+30"]

1. c4 {[%emt 0:00:00]} Nf6 {[%emt 0:00:00]} 2. Nc3 {[%emt 0:00:24]} g6 {[%emt 0:00:00]} 3. e4 {[%emt 0:02:01]} d6 {[%emt 0:00:11]} 4. d4 {[%emt 0:00:18]} Bg7 {[%emt 0:00:14]} 5. f3 {[%emt 0:00:35]} O-O {[%emt 0:00:09]} 6. Be3 {[%emt 0:00:04]} e5 {[%emt 0:00:17]} 7. Nge2 {[%emt 0:00:55]} Nbd7 {[%emt 0:01:18]} 8. Qd2 {[%emt 0:00:20]} c6 {[%emt 0:00:25]} 9. O-O-O {[%emt 0:07:21]} a6 {[%emt 0:01:35]} 10. Kb1 {[%emt 0:04:06]} b5 {[%emt 0:04:08]} 11. Nc1 {[%emt 0:08:09]} b4 {[%emt 0:03:11]} 12. N3e2 {[%emt 0:00:40]} a5 {[%emt 0:00:23]} 13. Bh6 {[%emt 0:00:48]} Rb8 {[%emt 0:07:31]} 14. h4 {[%emt 0:00:35]} a4 {[%emt 0:00:45]} 15. h5 {[%emt 0:01:02]} Qe7 {[%emt 0:14:39]} 16. Ng3 {[%emt 0:04:10]} Re8 {[%emt 0:05:51]} 17. Bxg7 {[%emt 0:03:17]} Kxg7 {[%emt 0:00:05]} 18. Qg5 {[%emt 0:02:06]} Kh8 {[%emt 0:04:11]} 19. hxg6 {[%emt 0:01:08]} fxg6 {[%emt 0:00:08]} 20. Qxg6 {[%emt 0:00:48]} Nf8 {[%emt 0:03:03]} 21. Qh6 {[%emt 0:00:32]} Ng8 {[%emt 0:00:26]} 22. Qe3 {[%emt 0:01:33]} a3 {[%emt 0:05:41]} 23. b3 {[%emt 0:00:33]} Qa7 {[%emt 0:00:55]} 24. c5 {[%emt 0:03:00]} dxc5 {[%emt 0:04:23]} 25. dxc5 {[%emt 0:03:42]} Nd7 {[%emt 0:04:03]} 26. Nd3 {[%emt 0:01:18]} Ndf6 {[%emt 0:03:57]} 27. Nh5 {[%emt 0:02:39]} Qf7 {[%emt 0:02:09]} 28. Qg5 {[%emt 0:01:51]} Nxh5 {[%emt 0:07:06]} 29. Rxh5 {[%emt 0:01:02]} Nf6 {[%emt 0:06:39]} 30. Nxe5 {[%emt 0:00:47]} Qxh5 {[%emt 0:00:47]} 31. Qxf6+ {[%emt 0:00:06]} Kg8 {[%emt 0:00:10]} 32. Bc4+ {[%emt 0:00:10]} Be6 {[%emt 0:00:31]} 33. Bxe6+ {[%emt 0:00:07]} Rxe6 {[%emt 0:00:24]} 34. Qxe6+ {[%emt 0:00:08]} Kh8 {[%emt 0:00:16]} 35. Qf6+ {[%emt 0:01:27]} Kg8 {[%emt 0:00:05]} 36. Ng4 {[%emt 0:00:15]} 1-0

[Event "Anderssen Festival 2019"]
[Site "Wroclaw"]
[Date "2019.08.10"]
[Round "8.13"]
[White "Luberanski, Jakub"]
[Black "Ochman, Sebastian"]
[Result "1/2-1/2"]
[ECO "D31"]
[WhiteElo "2010"]
[BlackElo "1789"]
[Annotator "NA"]
[PlyCount "120"]
[EventDate "2019.08.05"]
[EventType "swiss"]
[EventCountry "POL"]
[SourceTitle "playchess.com"]
[Source "ChessBase"]
[SourceQuality "1"]
[TimeControl "40/5400+30:900+30"]

1. d4 {[%emt 0:00:00]} d5 {[%emt 0:00:00]} 2. c4 {[%emt 0:00:00]} c6 {[%emt 0:00:53]} 3. Nf3 {[%emt 0:00:00]} e6 {[%emt 0:00:14]} 4. Nc3 {[%emt 0:00:06]} dxc4 {[%emt 0:00:15]} 5. a4 {[%emt 0:04:06]} Bb4 {[%emt 0:00:32]} 6. e4 {[%emt 0:00:26]} b5 {[%emt 0:10:20]} 7. Bd2 {[%emt 0:01:43]} a5 {[%emt 0:05:11]} 8. axb5 {[%emt 0:01:19]} Bxc3 {[%emt 0:00:09]} 9. bxc3 {[%emt 0:01:15]} cxb5 {[%emt 0:00:21]} 10. Be2 {[%emt 0:01:43]} Nc6 {[%emt 0:10:35]} 11. e5 {[%emt 0:04:56]} h6 {[%emt 0:09:00]} 12. Qc2 {[%emt 0:02:02]} Nge7 {[%emt 0:01:10]} 13. h4 {[%emt 0:12:05]} Ba6 {[%emt 0:02:59]} 14. O-O {[%emt 0:05:33]} O-O {[%emt 0:01:51]} 15. h5 {[%emt 0:04:23]} b4 {[%emt 0:17:28]} 16. cxb4 {[%emt 0:02:02]} axb4 {[%emt 0:00:11]} 17. Bxc4 {[%emt 0:02:31]} Bxc4 {[%emt 0:00:21]} 18. Qxc4 {[%emt 0:04:48]} Rxa1 {[%emt 0:04:29]} 19. Rxa1 {[%emt 0:00:07]} Qd5 {[%emt 0:00:05]} 20. Qxd5 {[%emt 0:04:38]} Nxd5 {[%emt 0:00:11]} 21. Kf1 {[%emt 0:00:39]} Rc8 {[%emt 0:13:46]} 22. Rc1 {[%emt 0:05:34]} Kf8 {[%emt 0:02:01]} 23. Ke2 {[%emt 0:01:08]} Ke8 {[%emt 0:00:58]} 24. Kd3 {[%emt 0:08:31]} Kd7 {[%emt 0:00:41]} 25. g4 {[%emt 0:03:30]} Ra8 {[%emt 0:01:11]} 26. g5 {[%emt 0:09:20]} Ra3+ {[%emt 0:02:21]} 27. Ke4 {[%emt 0:00:12]} f5+ {[%emt 0:02:15]} 28. gxf6 {[%emt 0:06:51]} gxf6 {[%emt 0:00:02]} 29. Nh4 {[%emt 0:01:04]} Rh3 {[%emt 0:00:47]} 30. Nf5 {[%emt 0:00:23]} Rxh5 {[%emt 0:01:54]} 31. Ng7 {[%emt 0:03:29]} Rh4+ {[%emt 0:00:49]} 32. f4 {[%emt 0:00:20]} Nce7 {[%emt 0:07:07]} 33. exf6 {[%emt 0:00:27]} Nxf6+ {[%emt 0:00:01]} 34. Ke5 {[%emt 0:00:11]} Ng4+ {[%emt 0:01:17]} 35. Ke4 {[%emt 0:00:05]} Nd5 {[%emt 0:00:14]} 36. Nxe6 {[%emt 0:02:58]} Kxe6 {[%emt 0:02:04]} 37. Rc6+ {[%emt 0:00:06]} Kd7 {[%emt 0:00:03]} 38. Kxd5 {[%emt 0:00:46]} Rh5+ {[%emt 0:00:06]} 39. f5 {[%emt 0:00:03]} Rxf5+ {[%emt 0:01:02]} 40. Ke4 {[%emt 0:00:00]} Kxc6 {[%emt 0:00:00]} 41. Kxf5 {[%emt 0:00:12]} b3 {[%emt 0:06:06]} 42. d5+ {[%emt 0:06:33]} Kxd5 {[%emt 0:00:16]} 43. Bc3 {[%emt 0:00:05]} Kc4 {[%emt 0:05:20]} 44. Ba1 {[%emt 0:00:32]} Ne3+ {[%emt 0:01:07]} 45. Kg6 {[%emt 0:00:15]} Nc2 {[%emt 0:00:34]} 46. Bb2 {[%emt 0:00:17]} Kd3 {[%emt 0:00:20]} 47. Kxh6 {[%emt 0:00:08]} Nb4 {[%emt 0:00:53]} 48. Kg5 {[%emt 0:01:16]} Kc2 {[%emt 0:00:21]} 49. Ba1 {[%emt 0:00:20]} Na2 {[%emt 0:01:01]} 50. Kg4 {[%emt 0:00:27]} Kb1 {[%emt 0:00:19]} 51. Bg7 {[%emt 0:00:05]} Kc1 {[%emt 0:00:43]} 52. Ba1 {[%emt 0:02:07]} Kb1 {[%emt 0:01:00]} 53. Bg7 {[%emt 0:00:06]} Kc2 {[%emt 0:00:02]} 54. Ba1 {[%emt 0:00:06]} Kd2 {[%emt 0:00:34]} 55. Kh3 {[%emt 0:00:41]} Nb4 {[%emt 0:01:06]} 56. Kh2 {[%emt 0:00:16]} Kc1 {[%emt 0:00:11]} 57. Kh1 {[%emt 0:00:33]} Nc2 {[%emt 0:00:17]} 58. Bg7 {[%emt 0:00:15]} Ne3 {[%emt 0:00:37]} 59. Ba1 {[%emt 0:00:18]} b2 {[%emt 0:00:26]} 60. Bxb2+ {[%emt 0:00:04]} Kxb2 {[%emt 0:00:06]} 1/2-1/2

[Event "Anderssen Festival 2019"]
[Site "Wroclaw"]
[Date "2019.08.10"]
[Round "8.14"]
[White "Glotz, Uwe"]
[Black "Wieczorek, Zbigniew"]
[Result "0-1"]
[ECO "B06"]
[WhiteElo "1843"]
[BlackElo "2235"]
[Annotator "NA"]
[PlyCount "78"]
[EventDate "2019.08.05"]
[EventType "swiss"]
[EventCountry "POL"]
[SourceTitle "playchess.com"]
[Source "ChessBase"]
[SourceQuality "1"]
[TimeControl "40/5400+30:900+30"]

1. e4 g6 2. d4 Bg7 3. f4 c6 4. Nf3 d5 5. e5 Nh6 6. h3 f6 7. Be2 Bf5 8. O-O O-O 9. g4 Be4 10. Bd3 Bxf3 11. Rxf3 fxe5 12. dxe5 e6 13. Kg2 Nd7 14. g5 Nf5 15. Bxf5 Rxf5 16. h4 Qe7 17. Rh3 Raf8 18. Be3 c5 19. c3 Qf7 20. Na3 a6 21. Nc2 Rxf4 22. Bxf4 Qxf4 23. Qe2 Nxe5 24. Rf1 Qxf1+ 25. Qxf1 Rxf1 26. Kxf1 Nc4 27. b3 Nd2+ 28. Ke2 Ne4 29. c4 d4 30. a4 Nc3+ 31. Kd2 e5 32. Rh1 e4 33. Re1 Be5 34. Rf1 Bg3 35. h5 Bh4 36. Rg1 gxh5 37. g6 h6 38. Rf1 Bg5+ 39. Ke1 d3 0-1

[Event "Anderssen Festival 2019"]
[Site "Wroclaw"]
[Date "2019.08.10"]
[Round "8.15"]
[White "Owoc, Jakub"]
[Black "Verwoert, Jef"]
[Result "1/2-1/2"]
[ECO "B22"]
[WhiteElo "1614"]
[BlackElo "2034"]
[Annotator "NA"]
[PlyCount "47"]
[EventDate "2019.08.05"]
[EventType "swiss"]
[EventCountry "POL"]
[SourceTitle "playchess.com"]
[Source "ChessBase"]
[SourceQuality "1"]
[TimeControl "40/5400+30:900+30"]

1. e4 {[%emt 0:00:00]} c5 {[%emt 0:00:00]} 2. c3 {[%emt 0:00:00]} e6 {[%emt 0:00:00]} 3. d4 {[%emt 0:00:03]} d5 {[%emt 0:00:19]} 4. exd5 {[%emt 0:00:31]} Qxd5 {[%emt 0:00:24]} 5. Nf3 {[%emt 0:00:19]} Nc6 {[%emt 0:01:32]} 6. Be3 {[%emt 0:00:56]} cxd4 {[%emt 0:01:01]} 7. cxd4 {[%emt 0:00:24]} Nf6 {[%emt 0:00:32]} 8. Nc3 {[%emt 0:00:09]} Qa5 {[%emt 0:01:08]} 9. Bc4 {[%emt 0:00:47]} Be7 {[%emt 0:03:06]} 10. O-O {[%emt 0:01:35]} O-O {[%emt 0:01:10]} 11. h3 {[%emt 0:00:23]} a6 {[%emt 0:01:08]} 12. a4 {[%emt 0:15:21]} Rd8 {[%emt 0:05:10]} 13. Qe2 {[%emt 0:06:21]} Qh5 {[%emt 0:05:36]} 14. Rfd1 {[%emt 0:03:27]} Nd5 {[%emt 0:02:18]} 15. Ne4 {[%emt 0:01:43]} Nxe3 {[%emt 0:14:33]} 16. Qxe3 {[%emt 0:00:26]} Nb4 {[%emt 0:02:43]} 17. Qe2 {[%emt 0:03:37]} Nd5 {[%emt 0:09:24]} 18. Ng3 {[%emt 0:04:01]} Qg6 {[%emt 0:01:42]} 19. Ne5 {[%emt 0:07:16]} Qg5 {[%emt 0:04:27]} 20. Ne4 {[%emt 0:05:06]} Qf5 {[%emt 0:05:12]} 21. Ng3 {[%emt 0:02:40]} Qf4 {[%emt 0:02:30]} 22. Qe4 {[%emt 0:04:31]} Qxe4 {[%emt 0:05:10]} 23. Nxe4 {[%emt 0:01:37]} f6 {[%emt 0:03:09]} 24. Nf3 {[%emt 0:01:18]} 1/2-1/2

[Event "Anderssen Festival 2019"]
[Site "Wroclaw"]
[Date "2019.08.10"]
[Round "8.16"]
[White "Jablonska, Sabina"]
[Black "Zerebiec, Maurycy"]
[Result "1/2-1/2"]
[ECO "A45"]
[WhiteElo "1963"]
[BlackElo "1708"]
[Annotator "NA"]
[PlyCount "151"]
[EventDate "2019.08.05"]
[EventType "swiss"]
[EventCountry "POL"]
[SourceTitle "playchess.com"]
[Source "ChessBase"]
[SourceQuality "1"]
[TimeControl "40/5400+30:900+30"]

1. d4 {[%emt 0:00:00]} Nf6 {[%emt 0:01:13]} 2. Bf4 {[%emt 0:00:00]} d5 {[%emt 0:00:21]} 3. e3 {[%emt 0:00:00]} c5 {[%emt 0:00:18]} 4. c3 {[%emt 0:00:00]} Nc6 {[%emt 0:00:26]} 5. Nd2 {[%emt 0:00:03]} Bf5 {[%emt 0:00:38]} 6. Qb3 {[%emt 0:01:24]} Qb6 {[%emt 0:00:35]} 7. dxc5 {[%emt 0:01:39]} Qxb3 {[%emt 0:00:05]} 8. axb3 {[%emt 0:03:59]} e5 {[%emt 0:00:20]} 9. Bg3 {[%emt 0:03:11]} Bxc5 {[%emt 0:01:05]} 10. b4 {[%emt 0:00:33]} Bd6 {[%emt 0:00:07]} 11. b5 {[%emt 0:00:34]} Ne7 {[%emt 0:01:05]} 12. Ngf3 {[%emt 0:01:22]} Nd7 {[%emt 0:01:16]} 13. Be2 {[%emt 0:13:09]} f6 {[%emt 0:03:46]} 14. O-O {[%emt 0:05:23]} h5 {[%emt 0:06:14]} 15. h4 {[%emt 0:02:00]} Bg4 {[%emt 0:00:16]} 16. e4 {[%emt 0:05:56]} Nc5 {[%emt 0:11:11]} 17. exd5 {[%emt 0:08:36]} Nxd5 {[%emt 0:00:10]} 18. Bc4 {[%emt 0:02:48]} Nb6 {[%emt 0:01:21]} 19. b4 {[%emt 0:01:57]} Nca4 {[%emt 0:02:07]} 20. Ne4 {[%emt 0:06:47]} Nxc4 {[%emt 0:02:08]} 21. Rxa4 {[%emt 0:01:12]} Bf5 {[%emt 0:01:04]} 22. Nxd6+ {[%emt 0:14:25]} Nxd6 {[%emt 0:03:02]} 23. Rfa1 {[%emt 0:03:54]} Nc8 {[%emt 0:06:50]} 24. Nd2 {[%emt 0:03:20]} Bd3 {[%emt 0:00:44]} 25. c4 {[%emt 0:00:56]} O-O {[%emt 0:01:10]} 26. R4a3 {[%emt 0:02:01]} Rd8 {[%emt 0:09:09]} 27. f3 {[%emt 0:06:25]} Bc2 {[%emt 0:01:17]} 28. Nf1 {[%emt 0:02:24]} Rd3 {[%emt 0:04:24]} 29. Bf2 {[%emt 0:01:46]} Rxa3 {[%emt 0:03:58]} 30. Rxa3 {[%emt 0:00:03]} Nd6 {[%emt 0:01:12]} 31. b6 {[%emt 0:02:33]} a6 {[%emt 0:01:48]} 32. Ne3 {[%emt 0:00:30]} Bg6 {[%emt 0:01:11]} 33. Ra1 {[%emt 0:00:49]} Bf7 {[%emt 0:11:08]} 34. c5 {[%emt 0:00:07]} Nb5 {[%emt 0:00:15]} 35. Rd1 {[%emt 0:04:21]} Nd4 {[%emt 0:00:08]} 36. Nf1 {[%emt 0:01:55]} Nc6 {[%emt 0:00:05]} 37. Rb1 {[%emt 0:00:29]} Be6 {[%emt 0:01:37]} 38. Ng3 {[%emt 0:01:03]} Bf7 {[%emt 0:00:44]} 39. Rb2 {[%emt 0:00:16]} Bg6 {[%emt 0:00:06]} 40. Be1 {[%emt 0:00:00]} Rd8 {[%emt 0:00:00]} 41. Ne2 {[%emt 0:03:13]} Kf7 {[%emt 0:05:38]} 42. Nc3 {[%emt 0:00:24]} Bd3 {[%emt 0:01:33]} 43. Bf2 {[%emt 0:02:14]} Ke6 {[%emt 0:00:21]} 44. Be3 {[%emt 0:01:53]} Kf5 {[%emt 0:06:14]} 45. Kf2 {[%emt 0:01:44]} g5 {[%emt 0:00:25]} 46. hxg5 {[%emt 0:00:34]} fxg5 {[%emt 0:00:05]} 47. Bd2 {[%emt 0:01:19]} Nd4 {[%emt 0:03:05]} 48. Nd1 {[%emt 0:00:55]} Nc2 {[%emt 0:00:38]} 49. Bc3 {[%emt 0:02:00]} e4 {[%emt 0:02:09]} 50. Rxc2 {[%emt 0:00:38]} Bxc2 {[%emt 0:00:05]} 51. Ne3+ {[%emt 0:00:03]} Ke6 {[%emt 0:01:03]} 52. Nxc2 {[%emt 0:00:05]} Rd3 {[%emt 0:00:56]} 53. Be1 {[%emt 0:02:39]} exf3 {[%emt 0:00:29]} 54. gxf3 {[%emt 0:00:09]} Rd7 {[%emt 0:06:23]} 55. Ke3 {[%emt 0:00:37]} Kd5 {[%emt 0:03:02]} 56. Bg3 {[%emt 0:00:57]} Re7+ {[%emt 0:04:43]} 57. Kd3 {[%emt 0:00:16]} Rf7 {[%emt 0:02:58]} 58. Ne3+ {[%emt 0:02:19]} Kc6 {[%emt 0:00:11]} 59. Ke4 {[%emt 0:00:28]} Re7+ {[%emt 0:00:11]} 60. Be5 {[%emt 0:01:10]} a5 {[%emt 0:00:42]} 61. bxa5 {[%emt 0:01:40]} Kxc5 {[%emt 0:00:28]} 62. Nf5 {[%emt 0:00:10]} Rh7 {[%emt 0:00:48]} 63. Bc7 {[%emt 0:01:29]} Kb5 {[%emt 0:00:54]} 64. Nd6+ {[%emt 0:00:02]} Kc6 {[%emt 0:00:09]} 65. Kf5 {[%emt 0:00:55]} h4 {[%emt 0:00:42]} 66. Kxg5 {[%emt 0:00:28]} h3 {[%emt 0:00:08]} 67. Ne4 {[%emt 0:00:47]} h2 {[%emt 0:00:23]} 68. Nf2 {[%emt 0:00:19]} h1=Q {[%emt 0:01:52]} 69. Nxh1 {[%emt 0:00:03]} Rxh1 {[%emt 0:00:07]} 70. f4 {[%emt 0:00:08]} Ra1 {[%emt 0:00:04]} 71. f5 {[%emt 0:00:29]} Rxa5 {[%emt 0:00:05]} 72. Kg6 {[%emt 0:00:13]} Ra1 {[%emt 0:00:14]} 73. f6 {[%emt 0:02:00]} Rg1+ {[%emt 0:00:16]} 74. Kf7 {[%emt 0:00:36]} Kd7 {[%emt 0:00:08]} 75. Bf4 {[%emt 0:00:44]} Rb1 {[%emt 0:01:18]} 76. Bc7 {[%emt 0:00:27]} 1/2-1/2